bitfinex/quotes_ETHUSD_20250403
["timestamp","ask_amount","ask_price","bid_price","bid_amount"]
[1743716528006,8.55601,1799.9,1799.8,0.30215052]
[1743716528204,8.55601,1799.9,1799.7,0.30222524]
[1743716528405,8.55601,1799.9,1799.8,0.30215052]
[1743716528706,8.55601,1799.9,1799.6,0.7873]
[1743716528924,8.55601,1799.9,1799.8,1.11845052]
[1743716529108,8.55601,1799.9,1799.8,0.8163]
[1743716529303,8.55601,1799.9,1799.8,1.11845052]
[1743716529541,11.56472,1800.3,1799.9,0.8163]
[1743716529700,8.40049107,1800.5,1800.2,0.8163]
[1743716529904,8.40049107,1800.5,1800.3,0.30177707]
[1743716530104,5.84641107,1800.5,1800.4,0.8163]
[1743716530406,2.84641107,1800.5,1800.4,0.8163]
[1743716530629,9.83264854,1800.7,1800.4,1.1180024]
[1743716531003,8.39985107,1800.7,1800.4,6.6723124]
[1743716531206,6.01,1800.8,1800.5,6.37018]
[1743716531413,5.5529,1800.9,1800.6,0.8163]
[1743716532217,5.5529,1800.9,1800.7,0.30147846]
[1743716532417,11.52592197,1801.0,1800.7,0.30147846]
[1743716532618,5.55278,1800.9,1800.6,6.36992]
[1743716532827,3.0,1800.8,1800.6,6.36992]
[1743716533020,5.55278,1800.9,1800.7,0.30147846]
[1743716533351,3.0,1800.8,1800.6,0.8163]
[1743716533822,3.0,1800.8,1800.7,1.11338221]
[1743716535644,5.55256,1801.0,1800.7,1.11338221]
[1743716536050,11.56236,1801.1,1800.7,6.66677221]
[1743716536344,5.55258,1801.0,1800.7,1.11338221]
[1743716536845,5.55258,1801.0,1800.7,6.66673221]
[1743716539352,5.55258,1801.0,1800.7,1.11338221]
[1743716539737,13.74774819,1801.1,1800.7,6.66676221]
[1743716540145,19.30011819,1801.1,1800.7,6.66676221]
[1743716540459,11.56217,1801.1,1800.8,0.8163]
[1743716540746,11.56217,1801.1,1800.9,0.29239896]
[1743716544930,5.55189,1801.2,1800.9,0.29239896]
[1743716547337,5.55189,1801.2,1800.9,5.84514896]
[1743716547543,5.55189,1801.2,1801.0,0.7676]
[1743716547726,11.10325,1801.3,1801.0,0.7676]
[1743716547931,11.10325,1801.3,1801.1,0.2901689]
[1743716549264,5.55159,1801.3,1801.1,0.2901689]
[1743716564650,11.56124,1801.4,1801.1,5.8423189]
[1743716569097,17.11263,1801.4,1801.1,5.8423189]
[1743716569293,11.56124,1801.4,1801.1,5.8423189]
[1743716569596,11.10263,1801.4,1801.1,5.8423189]
[1743716569896,11.10265,1801.4,1801.1,5.8423189]
[1743716570395,5.55124,1801.4,1801.1,5.8423189]
[1743716570862,11.10263,1801.4,1801.1,5.8423189]
[1743716571360,5.55124,1801.4,1801.1,5.8423189]
[1743716572092,11.10263,1801.4,1801.1,5.8423189]
[1743716573314,5.5517,1801.3,1801.1,0.2901689]
[1743716573464,17.248591,1801.2,1801.1,0.2901689]
[1743716573798,5.55282,1800.9,1800.6,6.31511]
[1743716574097,11.10576,1800.9,1800.6,0.7615]
[1743716574268,5.55282,1800.9,1800.7,0.75500078]
[1743716574461,5.55308,1800.8,1800.7,0.75500078]
[1743716574666,5.55308,1800.8,1800.7,0.26426307]
[1743716574967,5.55308,1800.8,1800.5,5.55386]
[1743716575189,5.55308,1800.8,1800.7,0.26550772]
[1743716575589,5.55308,1800.8,1800.6,0.49061035]
[1743716575904,11.10522,1801.0,1800.7,1.02751491]
[1743716576201,5.55252,1801.0,1800.7,1.51812526]
[1743716576779,5.55252,1801.0,1800.7,1.02751491]
[1743716578020,11.10523,1801.0,1800.7,1.02751491]
[1743716578397,5.55279,1800.9,1800.7,1.02751491]
[1743716578718,5.55308,1800.8,1800.7,0.26601491]
[1743716578901,7.460221,1800.9,1800.7,0.26601491]
[1743716579219,16.013201,1800.9,1800.8,0.26594028]
[1743716581013,8.55279,1800.9,1800.6,0.26608955]
[1743716581712,8.55279,1800.9,1800.6,5.81971955]
[1743716582777,14.10572,1800.9,1800.6,5.81971955]
[1743716584015,14.10572,1800.9,1800.6,0.26608955]
[1743716584683,5.55311,1800.8,1800.6,0.26608955]
[1743716595945,14.10585,1800.9,1800.6,0.26608955]
[1743716596119,5.55309,1800.8,1800.6,0.26608955]
[1743716606420,11.10631,1800.8,1800.6,0.26608955]
[1743716606826,6.34629,1800.7,1800.6,0.26608955]
[1743716607024,11.8999,1800.7,1800.3,11.10904]
[1743716607350,11.8999,1800.7,1800.3,12.300664]
[1743716607548,5.55314,1800.8,1800.5,6.36121]
[1743716607856,5.55314,1800.8,1800.6,0.24541005]
[1743716622498,8.55279,1800.9,1800.6,0.24541005]
[1743716622678,8.55279,1800.9,1800.6,6.46521042]
[1743716623360,14.10573,1800.9,1800.7,0.48950934]
[1743716623668,14.10575,1800.9,1800.8,0.24562878]
[1743716624082,8.55279,1800.9,1800.8,0.24562878]
[1743716624250,8.55279,1800.9,1800.6,5.55356]
[1743716624454,8.55279,1800.9,1800.8,0.24562878]
[1743716624655,8.55279,1800.9,1800.6,5.55356]
[1743716624853,8.55279,1800.9,1800.8,0.24562878]
[1743716625055,5.55279,1800.9,1800.6,5.55356]
[1743716625254,5.55279,1800.9,1800.8,0.24562878]
[1743716625493,5.55279,1800.9,1800.6,5.55356]
[1743716625693,5.55279,1800.9,1800.8,0.24562878]
[1743716625987,5.55279,1800.9,1800.7,0.48943467]
[1743716625988,5.55279,1800.9,1800.7,0.73513808]
[1743716626194,5.55279,1800.9,1800.8,0.24562878]
[1743716626618,5.55279,1800.9,1800.6,5.55356]
[1743716626825,0.7818,1801.5,1800.9,0.7515]
[1743716626976,0.7818,1801.5,1801.2,5.55171]
[1743716627182,11.56068,1801.6,1801.2,5.55171]
[1743716627381,11.56068,1801.6,1801.3,5.7969237]
[1743716627609,0.7818,1801.7,1801.3,0.9968937]
[1743716627914,5.55021,1801.8,1801.4,5.55113]
[1743716628095,7.02784761,1801.8,1801.4,11.5907557]
[1743716628305,7.02784761,1801.8,1801.5,5.79448926]
[1743716628604,7.02777761,1801.8,1801.5,5.79448926]
[1743716629319,1.47766761,1801.8,1801.5,5.79436926]
[1743716630619,1.47766761,1801.8,1801.5,11.34516926]
[1743716630846,0.8318,1801.9,1801.6,5.55051]
[1743716631002,3.8318,1801.9,1801.6,5.79402469]
[1743716631188,3.8318,1801.9,1801.6,0.24351469]
[1743716631189,9.3815,1801.9,1801.6,0.24351469]
[1743716632122,14.93144,1801.9,1801.6,0.24351469]
[1743716632293,5.55006,1801.8,1801.6,0.24351469]
[1743716632497,5.55031,1801.7,1801.4,6.35820639]
[1743716633322,5.55006,1801.8,1801.4,6.35820639]
[1743716633524,5.55006,1801.8,1801.4,11.90928639]
[1743716633826,11.10024,1801.8,1801.4,6.30258]
[1743716634132,11.10024,1801.8,1801.4,6.35808584]
[1743716634335,5.55006,1801.8,1801.4,7.49353758]
[1743716634632,5.55033,1801.7,1801.4,7.49353758]
[1743716635244,5.55033,1801.7,1801.3,11.10281]
[1743716635411,0.7708,1801.6,1801.3,5.55138]
[1743716636612,6.32092,1801.8,1801.4,0.05551154]
[1743716636937,5.55034,1801.7,1801.4,5.55111]
[1743716637510,5.55034,1801.7,1801.4,5.60661676]
[1743716637823,5.55034,1801.7,1801.4,6.72242844]
[1743716638138,11.10085,1801.7,1801.3,5.5515]
[1743716638735,5.55065,1801.6,1801.2,6.34172]
[1743716639039,6.32145,1801.6,1801.2,11.15908268]
[1743716639218,6.32145,1801.6,1801.2,11.10357]
[1743716640415,11.87224,1801.6,1801.2,5.55175]
[1743716640617,11.87224,1801.6,1800.9,5.55268]
[1743716640618,3.61571612,1801.3,1800.9,5.55268]
[1743716640845,5.55203,1801.2,1800.8,6.34275]
[1743716641150,6.32345,1801.0,1800.6,12.03006]
[1743716641316,2.84491612,1800.9,1800.5,5.55387]
[1743716641745,0.7708,1800.8,1800.5,5.55387]
[1743716642715,6.32401,1800.8,1800.5,5.55387]
[1743716643510,0.7708,1800.8,1800.5,5.55396]
[1743716643848,14.06543653,1801.0,1800.6,5.55361]
[1743716644036,19.61810653,1801.0,1800.6,5.55361]
[1743716644347,19.61807653,1801.0,1800.6,5.55361]
[1743716645043,13.29544653,1800.8,1800.0,0.7899]
[1743716645219,0.7708,1800.2,1799.5,6.34673]
[1743716645421,5.55613,1799.9,1799.5,0.7899]
[1743716645744,5.55667,1799.7,1799.3,0.41370901]
[1743716646045,5.55648,1799.7,1799.3,0.41370901]
[1743716646547,5.55648,1799.7,1799.4,0.17182751]
[1743716646845,5.5568,1799.6,1799.4,0.17182751]
[1743716647013,5.55648,1799.7,1799.4,0.17182751]
[1743716647216,5.96625662,1799.7,1799.3,5.55759]
[1743716647427,5.55648,1799.7,1799.4,0.17182751]
[1743716649957,5.55648,1799.7,1799.4,5.72920751]
[1743716650349,5.5565,1799.7,1799.4,5.72920751]
[1743716653256,12.76222117,1799.8,1799.4,5.72908751]
[1743716653957,5.5565,1799.7,1799.4,5.72908751]
[1743716655364,5.5565,1799.7,1799.4,0.17182751]
[1743716656354,5.5565,1799.7,1799.4,5.72916751]
[1743716656667,5.5565,1799.7,1799.4,0.17182751]
[1743716658472,3.0,1800.1,1799.4,0.17182751]
[1743716658676,6.35785,1800.2,1799.6,5.55679]
[1743716658977,6.35785,1800.2,1799.9,5.55582]
[1743716659273,5.55491,1800.3,1800.0,5.7268818]
[1743716659471,16.65378653,1800.4,1800.0,11.2822818]
[1743716659675,16.65378653,1800.4,1800.0,5.7267418]
[1743716659871,13.61897212,1800.4,1800.0,5.7267418]
[1743716660169,8.06439212,1800.4,1800.0,5.7267418]
[1743716660469,5.55464,1800.3,1800.0,5.7267418]
[1743716660679,5.55464,1800.3,1800.0,5.7267318]
[1743716661172,13.61887212,1800.4,1800.0,11.2821418]
[1743716661334,13.61887212,1800.4,1800.0,5.7267318]
[1743716662481,6.91652721,1800.3,1800.0,5.7267318]
[1743716662781,5.55464,1800.3,1800.0,5.7267318]
[1743716668487,5.55464,1800.3,1800.0,11.2821418]
[1743716670091,11.10895,1800.4,1800.0,11.2821418]
[1743716671456,5.55434,1800.4,1800.0,11.2821418]
[1743716671768,5.55434,1800.4,1800.1,5.55521]
[1743716672205,5.55434,1800.4,1800.2,0.17681629]
[1743716672586,5.55354,1800.7,1800.4,5.55423]
[1743716672791,5.55343,1800.7,1800.4,11.10841]
[1743716673086,6.01,1800.9,1800.6,5.55341]
[1743716673399,10.29457653,1801.0,1800.6,11.85986]
[1743716673600,3.0,1800.9,1800.7,5.72841996]
[1743716673808,10.72025242,1801.0,1800.7,5.72841996]
[1743716674106,3.0,1800.9,1800.7,5.72353948]
[1743716674274,3.0,1800.9,1800.7,0.17017948]
[1743716674598,10.72025242,1801.0,1800.7,5.72343948]
[1743716674802,10.72025242,1801.0,1800.7,5.55326]
[1743716675011,10.72025242,1801.0,1800.8,0.17457865]
[1743716675162,12.42429066,1801.0,1800.8,0.17457865]
[1743716676109,7.68223413,1801.0,1800.8,0.17457865]
[1743716677176,13.23488413,1801.0,1800.8,0.17457865]
[1743716677491,13.23488413,1801.0,1800.6,11.85987]
[1743716677807,13.23488413,1801.0,1800.9,0.17449593]
[1743716678276,7.68223413,1801.0,1800.6,11.85987]
[1743716678600,5.97819589,1801.0,1800.9,0.17449593]
[1743716678800,5.97819589,1801.0,1800.6,11.85987]
[1743716678968,5.97819589,1801.0,1800.9,0.17449593]
[1743716679167,5.97819589,1801.0,1800.6,11.85987]
[1743716679384,5.97819589,1801.0,1800.9,0.17449593]
[1743716679592,5.97819589,1801.0,1800.6,11.85987]
[1743716679788,5.97819589,1801.0,1800.9,0.17449593]
[1743716680307,5.97819589,1801.0,1800.6,13.045857]
[1743716680507,5.97819589,1801.0,1800.9,0.17449593]
[1743716680706,5.97819589,1801.0,1800.6,13.045857]
[1743716680872,5.97819589,1801.0,1800.9,0.17449593]
[1743716681069,5.97819589,1801.0,1800.6,13.045857]
[1743716681300,5.97819589,1801.0,1800.9,0.17449593]
[1743716681472,5.97819589,1801.0,1800.6,13.045857]
[1743716681671,5.97819589,1801.0,1800.9,0.17449593]
[1743716681900,5.97819589,1801.0,1800.6,11.85987]
[1743716682099,11.53084589,1801.0,1800.9,0.17449593]
[1743716682300,11.53084589,1801.0,1800.6,6.30631]
[1743716682612,11.53084589,1801.0,1800.9,0.17449593]
[1743716682768,12.76072048,1801.0,1800.6,11.85986]
[1743716683108,5.97819589,1801.0,1800.7,5.5533]
[1743716683308,5.97819589,1801.0,1800.7,5.72794512]
[1743716700946,11.53081589,1801.0,1800.7,5.72794512]
[1743716707079,5.97819589,1801.0,1800.7,5.72794512]
[1743716708275,0.42567589,1801.0,1800.7,5.72793512]
[1743716708480,0.67458059,1801.0,1800.7,5.72793512]
[1743716708955,6.22713059,1801.0,1800.7,5.72793512]
[1743716710999,6.65070118,1801.0,1800.7,5.72793512]
[1743716719332,5.97612059,1801.0,1800.7,5.72793512]
[1743716720331,5.97612059,1801.0,1800.7,11.28124512]
[1743716720628,5.97612059,1801.0,1800.7,5.72793512]
[1743716727843,5.97612059,1801.0,1800.7,5.72790512]
[1743716733363,8.8208328,1801.0,1800.7,5.72790512]
[1743716733655,0.88208328,1800.9,1800.7,11.28116512]
[1743716733823,8.8208328,1801.0,1800.7,11.28116512]
[1743716736160,8.8208328,1801.0,1800.7,5.72790512]
[1743716736454,8.8208328,1801.0,1800.7,11.28119512]
[1743716739389,8.8208328,1801.0,1800.7,5.72790512]
[1743716739605,14.3734528,1801.0,1800.7,0.17464512]
[1743716739897,5.55431,1800.5,1800.1,5.5552]
[1743716740051,3.0,1800.7,1800.1,5.5552]
[1743716740052,2.84471221,1800.3,1800.2,0.16103541]
[1743716740574,6.35075,1800.2,1799.9,5.55576]
[1743716740757,6.35075,1800.2,1799.8,5.55613]
[1743716740758,2.84471221,1800.1,1799.8,5.55613]
[1743716741281,8.40000221,1800.1,1799.8,5.55613]
[1743716741453,9.9172678,1800.1,1799.8,5.55613]
[1743716741654,9.9172678,1800.1,1799.7,5.55644]
[1743716741655,17.37437635,1800.1,1799.7,5.55644]
[1743716742269,0.7957,1800.0,1799.7,5.55644]
[1743716744100,0.7957,1800.0,1799.7,5.55632]
[1743716744277,0.7957,1800.0,1799.7,11.11264]
[1743716744594,0.7957,1800.0,1799.8,11.112]
[1743716744798,0.7957,1800.0,1799.8,5.556]
[1743716746497,0.7957,1800.0,1799.8,11.11201]
[1743716748307,0.7957,1800.0,1799.8,5.556]
[1743716749909,0.7957,1800.0,1799.8,11.112]
[1743716750283,13.06934635,1800.1,1799.9,5.55586]
[1743716750879,6.01,1800.1,1800.0,5.55555]
[1743716751395,0.42190364,1800.2,1800.0,11.1111]
[1743716751569,11.55208076,1800.3,1800.0,11.25599452]
[1743716752094,11.55208076,1800.3,1800.0,5.70044452]
[1743716753417,10.75638076,1800.3,1800.1,5.55502]
[1743716753585,6.01,1800.3,1800.2,5.55493]
[1743716753785,6.01,1800.8,1800.5,5.55382]
[1743716754009,0.41483914,1800.8,1800.5,5.55382]
[1743716754312,18.54443604,1800.9,1800.6,0.63437632]
[1743716754767,18.54443604,1800.9,1800.6,0.14746342]
[1743716755206,18.54443604,1800.9,1800.7,0.48689045]
[1743716755573,18.54443604,1800.9,1800.8,0.14639973]
[1743716755988,18.54443604,1800.9,1800.5,11.10767]
[1743716756509,18.54443604,1800.9,1800.6,0.146549]
[1743716756805,18.54443604,1800.9,1800.6,0.63343749]
[1743716757005,18.54443604,1800.9,1800.7,0.48688849]
[1743716757400,18.54443604,1800.9,1800.8,0.14639973]
[1743716757609,18.96587941,1800.9,1800.8,0.14639973]
[1743716757908,18.96587941,1800.9,1800.5,11.10767]
[1743716758209,18.96587941,1800.9,1800.6,0.56332309]
[1743716758406,18.96587941,1800.9,1800.6,1.05021183]
[1743716758776,18.96587941,1800.9,1800.6,0.63343774]
[1743716758977,18.96587941,1800.9,1800.6,6.18711774]
[1743716759209,18.96587941,1800.9,1800.7,0.48688874]
[1743716759505,18.96587941,1800.9,1800.8,0.14639973]
[1743716760879,18.96587941,1800.9,1800.6,5.55368]
[1743716761075,18.96587941,1800.9,1800.7,0.14647436]
[1743716761430,18.96587941,1800.9,1800.6,5.55368]
[1743716761710,18.96587941,1800.9,1800.7,0.14647436]
[1743716761919,18.96587941,1800.9,1800.7,0.4868869]
[1743716762088,18.96587941,1800.9,1800.8,0.14639973]
[1743716763127,18.96587941,1800.9,1800.6,5.55368]
[1743716763314,17.52853413,1800.9,1800.7,0.14647436]
[1743716763612,17.52853413,1800.9,1800.6,5.55368]
[1743716763910,2.84531515,1800.8,1800.6,5.55368]
[1743716764820,2.84531515,1800.8,1800.7,0.48688928]
[1743716766122,2.84531515,1800.8,1800.6,5.55368]
[1743716766622,2.84531515,1800.8,1800.7,0.14432578]
[1743716766916,2.84531515,1800.8,1800.6,11.10717]
[1743716767123,2.84531515,1800.8,1800.7,0.14432578]
[1743716767324,2.84531515,1800.8,1800.6,5.55356]
[1743716767627,2.84531515,1800.8,1800.7,0.63120154]
[1743716771630,2.84531515,1800.8,1800.7,0.14432578]
[1743716772302,2.84531515,1800.8,1800.7,0.48684105]
[1743716772628,2.84531515,1800.8,1800.7,0.63116683]
[1743716776950,2.84531515,1800.8,1800.7,0.14432578]
[1743716777306,2.84531515,1800.8,1800.6,11.10711]
[1743716777506,2.84531515,1800.8,1800.7,0.14432578]
[1743716777719,2.84531515,1800.8,1800.6,11.10711]
[1743716777933,2.84531515,1800.8,1800.7,0.14432578]
[1743716778137,2.84531515,1800.8,1800.7,0.48685371]
[1743716778439,2.84531515,1800.8,1800.7,0.63117949]
[1743716778608,6.01,1800.9,1800.7,6.44861578]
[1743716778808,8.85531515,1800.9,1800.7,6.18448306]
[1743716779537,0.7754,1800.8,1800.7,0.63118306]
[1743716779911,10.226923,1800.8,1800.7,0.14432578]
[1743716780118,5.55396,1800.6,1800.2,5.55493]
[1743716780303,3.62071515,1800.4,1800.3,0.14457864]
[1743716780733,3.62071515,1800.4,1800.3,0.48694701]
[1743716780734,9.17503515,1800.4,1800.3,0.48694701]
[1743716780904,11.79005115,1800.4,1800.3,0.6309771]
[1743716781403,11.79005115,1800.4,1800.3,0.14403009]
[1743716781736,11.79005115,1800.4,1800.1,5.55522]
[1743716781928,2.84531515,1800.2,1800.1,5.55522]
[1743716782322,2.84531515,1800.2,1800.0,5.55551]
[1743716783110,2.84531515,1800.2,1800.1,0.48701662]
[1743716785053,5.55432,1800.4,1800.1,1.26451662]
[1743716785212,2.84531515,1800.4,1800.2,5.55479]
[1743716785612,4.28625267,1800.4,1800.2,11.10963]
[1743716785853,4.28625267,1800.4,1800.3,0.48701662]
[1743716786148,6.01,1800.5,1800.3,6.04163662]
[1743716786356,6.01,1800.5,1800.4,5.55432]
[1743716786649,2.84531515,1800.6,1800.4,5.55432]
[1743716786825,2.84531515,1800.6,1800.5,5.55401]
[1743716788252,2.84531515,1800.6,1800.5,6.45772139]
[1743716789707,6.01,1800.8,1800.5,6.45772139]
[1743716789708,10.75239111,1800.8,1800.6,5.55366]
[1743716789919,6.04052827,1800.8,1800.7,5.55339]
[1743716790145,4.74239111,1801.0,1800.7,5.55339]
[1743716791247,4.74239111,1801.2,1800.9,11.10529]
[1743716791434,4.74239111,1801.2,1801.0,11.10468]
[1743716791610,11.96144439,1801.3,1801.0,5.55234]
[1743716791814,11.17324439,1801.3,1801.1,5.55215]
[1743716792014,6.43085328,1801.3,1801.1,11.88171]
[1743716792246,6.01,1801.3,1801.2,5.55185]
[1743716793551,6.01,1801.3,1801.2,6.03867729]
[1743716794654,6.01,1801.3,1801.2,6.45530865]
[1743716795359,5.16236909,1801.5,1801.2,12.00715865]
[1743716795947,5.16236909,1801.5,1801.3,5.55153]
[1743716796136,5.16236909,1801.5,1801.3,6.03835729]
[1743716796316,4.74239111,1801.5,1801.3,6.03835729]
[1743716796816,4.74239111,1801.5,1801.4,0.14174678]
[1743716797115,4.74239111,1801.5,1801.4,0.62857407]
[1743716797513,4.74239111,1801.5,1801.4,0.14174678]
[1743716798323,4.74239111,1801.5,1801.2,5.55185]
[1743716798523,4.74239111,1801.5,1801.4,0.14174678]
[1743716798925,4.74239111,1801.5,1801.2,5.5517]
[1743716799454,5.16533001,1801.5,1801.3,0.14182137]
[1743716799660,5.16533001,1801.5,1801.3,0.55843684]
[1743716799857,4.74239111,1801.5,1801.3,1.04518972]
[1743716800252,4.74239111,1801.5,1801.3,0.62857425]
[1743716800664,4.74239111,1801.5,1801.4,0.48675288]
[1743716800965,5.53059111,1801.6,1801.4,0.62849966]
[1743716801465,5.53059111,1801.6,1801.4,0.14174678]
[1743716801668,5.53059111,1801.6,1801.2,5.5517]
[1743716801962,5.53059111,1801.6,1801.2,6.739831]
[1743716802365,5.53059111,1801.6,1801.3,0.14182137]
[1743716803476,5.93915709,1801.6,1801.3,0.14182137]
[1743716808970,4.74239111,1801.4,1801.3,0.14182137]
[1743716811875,5.51309111,1801.4,1801.3,0.14182137]
[1743716812280,0.7707,1801.4,1801.3,0.14182137]
[1743716813870,0.7707,1801.4,1801.3,5.69336137]
[1743716814060,4.74239111,1801.5,1801.3,5.69336137]
[1743716814383,4.74239111,1801.5,1801.3,0.14182137]
[1743716814911,5.52189111,1801.6,1801.3,5.69331137]
[1743716815182,5.52189111,1801.6,1801.3,0.14182137]
[1743716815374,5.52189111,1801.6,1801.3,5.69336137]
[1743716821984,3.0,1801.5,1801.3,5.69325137]
[1743716822190,3.0,1801.5,1801.3,0.14182137]
[1743716822488,3.0,1801.5,1801.4,0.48993464]
[1743716822784,5.52189111,1801.6,1801.4,0.62852909]
[1743716823293,6.01,1801.7,1801.4,5.68972445]
[1743716823468,6.01,1801.7,1801.4,6.8138489]
[1743716823991,6.01,1801.7,1801.5,0.4899052]
[1743716824490,6.01,1801.7,1801.6,0.13638963]
[1743716824984,6.01,1801.7,1801.4,5.55113]
[1743716825189,6.01,1801.7,1801.6,0.13638963]
[1743716825389,6.01,1801.7,1801.5,0.1364642]
[1743716825594,6.01,1801.7,1801.4,5.55113]
[1743716825595,6.01,1801.7,1801.6,0.13638963]
[1743716825990,6.01,1801.7,1801.4,5.55113]
[1743716826202,6.01,1801.7,1801.6,0.13638963]
[1743716826359,6.01,1801.7,1801.5,0.1364642]
[1743716826560,6.01,1801.7,1801.5,5.6872342]
[1743716827470,6.01,1801.7,1801.5,0.1364642]
[1743716827693,2.84270106,1801.6,1801.5,0.1364642]
[1743716827896,2.84270106,1801.6,1801.3,11.10285]
[1743716828065,2.84270106,1801.6,1801.5,0.1364642]
[1743716828389,2.84270106,1801.6,1801.4,5.68775877]
[1743716828596,2.84270106,1801.6,1801.5,0.1364642]
[1743716831899,2.84270106,1801.6,1801.2,6.35102]
[1743716832084,0.7551,1801.5,1801.3,5.55143]
[1743716832287,2.84270106,1801.4,1801.3,5.55143]
[1743716832474,2.84270106,1801.4,1801.1,5.5521]
[1743716832680,2.84270106,1801.4,1801.3,0.48986512]
[1743716833279,2.84270106,1801.4,1801.1,5.5521]
[1743716833481,0.7551,1801.5,1801.1,5.5521]
[1743716833482,2.84270106,1801.2,1801.1,5.5521]
[1743716833786,3.59780106,1801.2,1800.9,5.55265]
[1743716833990,3.59780106,1801.2,1800.8,5.55306]
[1743716833991,2.84270106,1801.0,1800.8,5.55306]
[1743716834187,2.84270106,1801.0,1800.7,5.55333]
[1743716834594,4.37322955,1801.2,1800.6,5.55364]
[1743716834595,2.84270106,1800.8,1800.6,5.55364]
[1743716835200,2.84270106,1800.8,1800.5,11.10796]
[1743716835404,2.84270106,1800.8,1800.5,5.55398]
[1743716835702,8.49727905,1800.9,1800.5,5.55398]
[1743716836016,15.95800696,1800.9,1800.4,11.10843]
[1743716836305,15.95800696,1800.9,1800.4,5.96965465]
[1743716836500,15.95800696,1800.9,1800.5,0.48891986]
[1743716837281,15.95800696,1800.9,1800.4,5.96965465]
[1743716837612,15.95800696,1800.9,1800.4,5.55417]
[1743716841417,15.95800696,1800.9,1800.5,0.12717686]
[1743716843721,4.5958007,1800.8,1800.5,0.12717686]
[1743716843920,0.7801,1800.7,1800.5,0.12717686]
[1743716844215,0.7801,1800.7,1800.3,11.10908]
[1743716844685,0.7801,1800.7,1800.4,0.13090627]
[1743716846118,1.19769288,1800.7,1800.4,0.13090627]
[1743716849225,3.0,1800.8,1800.5,5.55386]
[1743716849726,3.0,1800.8,1800.6,0.13217355]
[1743716857738,11.53227905,1800.9,1800.6,0.13217355]
[1743716857904,11.53227905,1800.9,1800.5,5.55386]
[1743716861741,2.84545109,1800.8,1800.5,5.55386]
[1743716861910,2.84545109,1800.8,1800.6,0.1317165]
[1743716864442,0.7676,1800.7,1800.6,0.1317165]
[1743716864643,0.7676,1800.7,1800.4,5.55427]
[1743716864845,0.7676,1800.7,1800.4,6.746796]
[1743716865147,0.7676,1800.7,1800.5,0.13179115]
[1743716868047,0.7676,1800.7,1800.5,5.68578115]
[1743716868232,2.84545109,1800.8,1800.6,0.7551]
[1743716868415,2.84545109,1800.8,1800.7,0.13145907]
[1743716868639,2.84545109,1800.8,1800.6,6.30874]
[1743716868835,2.84545109,1800.8,1800.7,0.13145907]
[1743716869028,2.84545109,1800.8,1800.6,7.495007]
[1743716869226,2.84545109,1800.8,1800.7,0.13145907]
[1743716869427,2.84545109,1800.8,1800.6,7.495007]
[1743716869825,2.84545109,1800.8,1800.7,0.13145907]
[1743716870049,2.84545109,1800.8,1800.6,7.495007]
[1743716870347,2.84545109,1800.8,1800.7,0.13145907]
[1743716870547,2.84545109,1800.8,1800.6,7.494967]
[1743716870767,2.84545109,1800.8,1800.7,0.13145907]
[1743716871046,2.84545109,1800.8,1800.6,7.494967]
[1743716871348,2.84545109,1800.8,1800.7,0.13145907]
[1743716871548,2.84545109,1800.8,1800.6,7.494967]
[1743716871747,2.84545109,1800.8,1800.7,0.13145907]
[1743716871948,2.84545109,1800.8,1800.6,7.494967]
[1743716872156,2.84545109,1800.8,1800.7,0.13145907]
[1743716872349,2.84545109,1800.8,1800.6,6.3087]
[1743716872532,2.84545109,1800.8,1800.7,0.13145907]
[1743716872738,6.01,1800.9,1800.7,5.55326]
[1743716873035,6.01,1800.9,1800.8,0.13138444]
[1743716877561,8.85545109,1801.0,1800.8,0.13138444]
[1743716878287,8.85545109,1801.0,1800.8,5.68432444]
[1743716878468,8.85545109,1801.0,1800.8,11.10589]
[1743716878758,2.84545109,1801.0,1800.9,0.13057865]
[1743716880563,3.26109947,1801.2,1800.9,0.91377865]
[1743716880768,2.84545109,1801.2,1800.9,12.01910865]
[1743716881133,2.84545109,1801.2,1801.0,5.55246]
[1743716881360,5.84545109,1801.2,1801.1,0.13042943]
[1743716882052,2.84545109,1801.2,1801.1,0.13042943]
[1743716882373,2.84545109,1801.2,1801.1,5.68258943]
[1743716883042,2.84545109,1801.4,1801.2,5.55184]
[1743716883314,2.84545109,1801.4,1801.3,0.12790448]
[1743716889879,2.84545109,1801.6,1801.4,5.55101]
[1743716890197,2.84545109,1801.6,1801.5,5.67634566]
[1743716893308,2.84545109,1801.6,1801.5,0.12542566]
[1743716894394,3.0,1801.7,1801.5,0.12542566]
[1743716895371,3.0,1801.7,1801.5,5.67632566]
[1743716906182,3.0,1801.7,1801.5,5.67632566]
[1743716907213,9.28086687,1801.8,1801.5,11.22715566]
[1743716907412,2.84545109,1801.8,1801.6,5.55059]
[1743716907579,2.84545109,1801.8,1801.7,5.55031]
[1743716907779,0.05,1801.9,1801.7,5.67366861]
[1743716908080,0.05,1801.9,1801.7,11.22384861]
[1743716908479,0.05,1801.9,1801.8,5.55]
[1743716908680,0.05,1801.9,1801.8,5.67328406]
[1743716908886,0.05,1801.9,1801.8,6.79563047]
[1743716910620,0.05,1801.9,1801.8,7.55273047]
[1743716910792,0.05,1801.9,1801.8,7.60822483]
[1743716911390,0.05,1801.9,1801.8,7.55273047]
[1743716911691,0.05,1801.9,1801.8,7.6082226]
[1743716915022,0.05,1801.9,1801.8,10.6082226]
[1743716916421,1e-05,1801.9,1801.8,14.00367369]
[1743716916728,1e-05,1801.9,1801.8,13.94818156]
[1743716924832,1e-05,1801.9,1801.8,16.79363265]
[1743716925634,1e-05,1801.9,1801.8,28.80263265]
[1743716925833,0.05,1802.9,1802.8,5.54692]
[1743716926038,45.51218,1803.7,1802.8,5.54692]
[1743716926039,2.84545109,1803.5,1803.4,5.54508]
[1743716926245,0.8195,1803.7,1803.5,5.54472]
[1743716926413,0.8195,1803.7,1803.6,5.54446]
[1743716926604,0.05,1803.9,1803.7,5.54402]
[1743716926799,0.05,1803.9,1803.8,5.54385]
[1743716927039,0.05,1803.9,1803.8,5.6530985]
[1743716927264,0.05,1803.9,1803.8,6.77281035]
[1743716927435,0.05,1803.9,1803.8,6.82824837]
[1743716927844,0.05,1803.9,1803.8,6.71899987]
[1743716928185,0.05,1803.9,1803.8,11.98999987]